[Event "Titled Tuesday Blitz August 15 Early 2023"]
[White "Salinas Herrera, Pablo"]
[Black "Akylbekov, Nasyr"]
[WhiteFideId "3407128"]
[BlackFideId "13800353"]
[WhiteElo "2820"]
[BlackElo "2428"]
[Result "1-0"]
[Round "1"]
[TimeControl "180+1"]
[Date "2023.08.15"]
[WhiteClock "0:02:20"]
[BlackClock "0:02:22"]
[Board "68"]

1. d4 {[%clk 0:02:57]}  Nf6 {[%clk 0:02:59]} 2. Nf3 {[%clk 0:02:58]}  e6 {[%clk 0:02:59]} 3. Bf4 {[%clk 0:02:58]}  d5 {[%clk 0:02:59]} 4. e3 {[%clk 0:02:59]}  Bd6 {[%clk 0:02:59]} 5. Nbd2 {[%clk 0:02:59]}  O-O {[%clk 0:03:00]} 6. c3 {[%clk 0:02:59]}  Re8 {[%clk 0:03:00]} 7. Ne5 {[%clk 0:02:59]}  Bxe5 {[%clk 0:02:55]} 8. Bxe5 {[%clk 0:02:59]}  Nc6 {[%clk 0:02:54]} 9. Bg3 {[%clk 0:02:59]}  e5 {[%clk 0:02:54]} 10. Bb5 {[%clk 0:02:57]}  exd4 {[%clk 0:02:53]} 11. cxd4 {[%clk 0:02:58]}  Bd7 {[%clk 0:02:52]} 12. O-O {[%clk 0:02:57]}  a6 {[%clk 0:02:52]} 13. Bd3 {[%clk 0:02:56]}  Ne4 {[%clk 0:02:45]} 14. Nxe4 {[%clk 0:02:52]}  dxe4 {[%clk 0:02:46]} 15. Be2 {[%clk 0:02:52]}  Ne7 {[%clk 0:02:46]} 16. Rc1 {[%clk 0:02:50]}  c6 {[%clk 0:02:45]} 17. Qb3 {[%clk 0:02:50]}  b5 {[%clk 0:02:38]} 18. Rc5 {[%clk 0:02:49]}  Be6 {[%clk 0:02:38]} 19. Qc2 {[%clk 0:02:46]}  Qd7 {[%clk 0:02:39]} 20. Rc1 {[%clk 0:02:43]}  Bd5 {[%clk 0:02:39]} 21. b3 {[%clk 0:02:40]}  a5 {[%clk 0:02:39]} 22. h3 {[%clk 0:02:37]}  Nf5 {[%clk 0:02:37]} 23. Bf4 {[%clk 0:02:36]}  a4 {[%clk 0:02:37]} 24. b4 {[%clk 0:02:36]}  a3 {[%clk 0:02:34]} 25. Qd2 {[%clk 0:02:35]}  Ne7 {[%clk 0:02:28]} 26. Bg4 {[%clk 0:02:32]}  f5 {[%clk 0:02:28]} 27. Bd1 {[%clk 0:02:29]}  h6 {[%clk 0:02:28]} 28. R1c3 {[%clk 0:02:28]}  Qe6 {[%clk 0:02:25]} 29. Qc1 {[%clk 0:02:25]}  Bxa2 {[%clk 0:02:24]} 30. Rxa3 {[%clk 0:02:25]}  Rxa3 {[%clk 0:02:23]} 31. Qxa3 {[%clk 0:02:25]}  Bd5 {[%clk 0:02:22]} 32. Qa7 {[%clk 0:02:23]}  g5 {[%clk 0:02:22]} 33. Be5 {[%clk 0:02:21]}  Ng6 {[%clk 0:02:22]} 34. Qg7# {[%clk 0:02:20]} 1-0


[Site "https://www.chess.com"]

[Event "Titled Tuesday Blitz August 15 Early 2023"]
[White "Nathan, Nitish"]
[Black "Maksimovic, Bojan"]
[WhiteFideId "30927870"]
[BlackFideId "14408120"]
[WhiteElo "2427"]
[BlackElo "2818"]
[Result "0-1"]
[Round "1"]
[TimeControl "180+1"]
[Date "2023.08.15"]
[WhiteClock "0:00:40"]
[BlackClock "0:01:05"]
[Board "69"]

1. d4 {[%clk 0:03:00]}  Nf6 {[%clk 0:02:59]} 2. Bf4 {[%clk 0:03:00]}  Nh5 {[%clk 0:02:59]} 3. Bd2 {[%clk 0:02:57]}  g6 {[%clk 0:02:59]} 4. e4 {[%clk 0:02:56]}  d5 {[%clk 0:02:59]} 5. e5 {[%clk 0:02:55]}  c5 {[%clk 0:02:58]} 6. c3 {[%clk 0:02:54]}  Nc6 {[%clk 0:02:57]} 7. Nf3 {[%clk 0:02:52]}  Bg4 {[%clk 0:02:57]} 8. Bb5 {[%clk 0:02:50]}  cxd4 {[%clk 0:02:56]} 9. Bxc6+ {[%clk 0:02:47]}  bxc6 {[%clk 0:02:56]} 10. cxd4 {[%clk 0:02:47]}  Qb6 {[%clk 0:02:55]} 11. Nc3 {[%clk 0:02:38]}  Bxf3 {[%clk 0:02:52]} 12. Qxf3 {[%clk 0:02:37]}  Qxd4 {[%clk 0:02:51]} 13. O-O-O {[%clk 0:02:36]}  Qxe5 {[%clk 0:02:51]} 14. Rhe1 {[%clk 0:02:36]}  Qf5 {[%clk 0:02:51]} 15. Qe2 {[%clk 0:02:32]}  Nf6 {[%clk 0:02:45]} 16. Qa6 {[%clk 0:02:28]}  Qd7 {[%clk 0:02:45]} 17. Be3 {[%clk 0:02:12]}  h5 {[%clk 0:02:14]} 18. Kb1 {[%clk 0:02:03]}  Bg7 {[%clk 0:02:08]} 19. Bc5 {[%clk 0:01:59]}  O-O {[%clk 0:02:05]} 20. Rxe7 {[%clk 0:01:51]}  Qf5+ {[%clk 0:02:05]} 21. Ka1 {[%clk 0:01:50]}  Rfe8 {[%clk 0:01:57]} 22. Qxc6 {[%clk 0:01:36]}  Rac8 {[%clk 0:01:46]} 23. Rxe8+ {[%clk 0:01:29]}  Rxe8 {[%clk 0:01:47]} 24. a3 {[%clk 0:01:16]}  Qe6 {[%clk 0:01:44]} 25. Qxe6 {[%clk 0:01:10]}  fxe6 {[%clk 0:01:45]} 26. Bxa7 {[%clk 0:01:10]}  Nd7 {[%clk 0:01:36]} 27. Be3 {[%clk 0:01:07]}  Ne5 {[%clk 0:01:24]} 28. Ka2 {[%clk 0:01:04]}  Nc4 {[%clk 0:01:15]} 29. Bc5 {[%clk 0:00:59]}  Rc8 {[%clk 0:01:09]} 30. Bb4 {[%clk 0:00:54]}  Kf7 {[%clk 0:01:07]} 31. Ne2 {[%clk 0:00:48]}  Nxb2 {[%clk 0:01:06]} 32. Rb1 {[%clk 0:00:45]}  Nd3 {[%clk 0:01:05]} 33. Rb3 {[%clk 0:00:37]}  Nxb4+ {[%clk 0:01:02]} 34. Rxb4 {[%clk 0:00:37]}  Rc2+ {[%clk 0:01:03]} 35. Kb3 {[%clk 0:00:38]}  Rxe2 {[%clk 0:01:03]} 36. a4 {[%clk 0:00:38]}  Rxf2 {[%clk 0:01:02]} 37. a5 {[%clk 0:00:39]}  Rxg2 {[%clk 0:01:02]} 38. a6 {[%clk 0:00:39]}  Rb2+ {[%clk 0:01:02]} 39. Ka4 {[%clk 0:00:37]}  Rxb4+ {[%clk 0:01:03]} 40. Kxb4 {[%clk 0:00:36]}  Bd4 {[%clk 0:01:03]} 41. Kb3 {[%clk 0:00:36]}  Ba7 {[%clk 0:01:03]} 42. Kc2 {[%clk 0:00:37]}  e5 {[%clk 0:01:03]} 43. Kd3 {[%clk 0:00:38]}  e4+ {[%clk 0:01:04]} 44. Ke2 {[%clk 0:00:39]}  d4 {[%clk 0:01:04]} 45. Kd2 {[%clk 0:00:40]}  d3 {[%clk 0:01:05]} 46. h4 {[%clk 0:00:40]}  Ke6 {[%clk 0:01:05]} 47. Ke1 {[%clk 0:00:39]}  e3 {[%clk 0:01:05]} 48. Kf1 {[%clk 0:00:39]}  e2+ {[%clk 0:01:06]} 49. Ke1 {[%clk 0:00:40]}  Kf5 {[%clk 0:01:04]} 50. Kd2 {[%clk 0:00:39]}  Bf2 {[%clk 0:01:04]} 51. a7 {[%clk 0:00:38]}  e1=Q+ {[%clk 0:01:05]} 52. Kxd3 {[%clk 0:00:38]}  Bxa7 {[%clk 0:01:04]} 53. Kc4 {[%clk 0:00:38]}  Qe4+ {[%clk 0:01:04]} 54. Kb5 {[%clk 0:00:39]}  Qb7+ {[%clk 0:01:05]} 55. Kc4 {[%clk 0:00:39]}  Qc6+ {[%clk 0:01:05]} 56. Kd3 {[%clk 0:00:40]}  Qe4+ {[%clk 0:01:05]} 57. Kc3 {[%clk 0:00:40]}  Qd4+ {[%clk 0:01:05]} 58. Kc2 {[%clk 0:00:40]}  Qc4+ {[%clk 0:01:05]} 59. Kd2 {[%clk 0:00:40]}  Ke4 {[%clk 0:01:05]} 60. Ke1 {[%clk 0:00:40]}  Qa2 {[%clk 0:01:04]} 61. Kd1 {[%clk 0:00:40]}  Kd3 {[%clk 0:01:05]} 62. Ke1 {[%clk 0:00:40]}  Qe2# {[%clk 0:01:05]} 0-1


[Site "https://www.chess.com"]

[Event "Titled Tuesday Blitz August 15 Early 2023"]
[White "Miszler, Levente"]
[Black "Molina, Roberto Junio Brito"]
[WhiteFideId "763276"]
[BlackFideId "2109450"]
[WhiteElo "2426"]
[BlackElo "2805"]
[Result "0-1"]
[Round "1"]
[TimeControl "180+1"]
[Date "2023.08.15"]
[WhiteClock "0:00:18"]
[BlackClock "0:00:31"]
[Board "71"]

1. d4 {[%clk 0:03:00]}  d5 {[%clk 0:02:54]} 2. Nf3 {[%clk 0:02:59]}  Nf6 {[%clk 0:02:53]} 3. g3 {[%clk 0:02:59]}  c6 {[%clk 0:02:47]} 4. Bg2 {[%clk 0:02:59]}  Bf5 {[%clk 0:02:47]} 5. O-O {[%clk 0:02:58]}  h6 {[%clk 0:02:47]} 6. c4 {[%clk 0:02:58]}  e6 {[%clk 0:02:48]} 7. Nc3 {[%clk 0:02:58]}  Nbd7 {[%clk 0:02:47]} 8. Nd2 {[%clk 0:02:54]}  Be7 {[%clk 0:02:46]} 9. e4 {[%clk 0:02:53]}  dxe4 {[%clk 0:02:47]} 10. Ndxe4 {[%clk 0:02:54]}  Nxe4 {[%clk 0:02:47]} 11. Nxe4 {[%clk 0:02:54]}  O-O {[%clk 0:02:45]} 12. Be3 {[%clk 0:02:54]}  Nf6 {[%clk 0:02:41]} 13. Nc3 {[%clk 0:02:50]}  Rc8 {[%clk 0:02:35]} 14. Qe2 {[%clk 0:02:50]}  Qa5 {[%clk 0:02:35]} 15. Rfd1 {[%clk 0:02:49]}  Rfd8 {[%clk 0:02:34]} 16. Rd2 {[%clk 0:02:49]}  Bb4 {[%clk 0:02:33]} 17. a3 {[%clk 0:02:39]}  Bxc3 {[%clk 0:02:32]} 18. bxc3 {[%clk 0:02:40]}  Qxc3 {[%clk 0:02:30]} 19. Rdd1 {[%clk 0:02:39]}  Bg4 {[%clk 0:02:24]} 20. f3 {[%clk 0:02:37]}  Bf5 {[%clk 0:02:24]} 21. Bf2 {[%clk 0:02:32]}  Qa5 {[%clk 0:02:20]} 22. g4 {[%clk 0:02:27]}  Bg6 {[%clk 0:02:19]} 23. Qe5 {[%clk 0:02:23]}  Qc7 {[%clk 0:02:04]} 24. h4 {[%clk 0:02:18]}  Rd7 {[%clk 0:01:54]} 25. g5 {[%clk 0:02:14]}  hxg5 {[%clk 0:01:53]} 26. hxg5 {[%clk 0:02:15]}  Nh7 {[%clk 0:01:48]} 27. f4 {[%clk 0:02:05]}  Rcd8 {[%clk 0:01:42]} 28. Qxc7 {[%clk 0:02:05]}  Rxc7 {[%clk 0:01:42]} 29. d5 {[%clk 0:02:00]}  cxd5 {[%clk 0:01:35]} 30. cxd5 {[%clk 0:02:01]}  b6 {[%clk 0:01:19]} 31. dxe6 {[%clk 0:01:38]}  Rxd1+ {[%clk 0:01:20]} 32. Rxd1 {[%clk 0:01:38]}  fxe6 {[%clk 0:01:21]} 33. Rd8+ {[%clk 0:01:33]}  Kf7 {[%clk 0:01:19]} 34. Bd4 {[%clk 0:01:34]}  Nf8 {[%clk 0:01:12]} 35. Be5 {[%clk 0:01:31]}  Rd7 {[%clk 0:01:13]} 36. Ra8 {[%clk 0:01:25]}  Bf5 {[%clk 0:01:05]} 37. Bc6 {[%clk 0:01:22]}  Rd1+ {[%clk 0:01:04]} 38. Kf2 {[%clk 0:01:21]}  Ng6 {[%clk 0:00:59]} 39. Be8+ {[%clk 0:01:18]}  Ke7 {[%clk 0:00:57]} 40. Bxg6 {[%clk 0:01:18]}  Bxg6 {[%clk 0:00:58]} 41. Rxa7+ {[%clk 0:01:17]}  Rd7 {[%clk 0:00:58]} 42. Ra6 {[%clk 0:01:11]}  Rb7 {[%clk 0:00:56]} 43. Bxg7 {[%clk 0:01:09]}  Kd6 {[%clk 0:00:56]} 44. Be5+ {[%clk 0:01:03]}  Kd5 {[%clk 0:00:56]} 45. Ke3 {[%clk 0:01:01]}  Bf5 {[%clk 0:00:53]} 46. Ra8 {[%clk 0:00:58]}  Rh7 {[%clk 0:00:52]} 47. Kf2 {[%clk 0:00:51]}  Rh2+ {[%clk 0:00:51]} 48. Kg3 {[%clk 0:00:50]}  Rh1 {[%clk 0:00:49]} 49. Kg2 {[%clk 0:00:48]}  Be4+ {[%clk 0:00:47]} 50. Kf2 {[%clk 0:00:48]}  Rh2+ {[%clk 0:00:43]} 51. Ke3 {[%clk 0:00:47]}  Bf5 {[%clk 0:00:41]} 52. Rd8+ {[%clk 0:00:40]}  Kc6 {[%clk 0:00:41]} 53. Rd6+ {[%clk 0:00:38]}  Kc5 {[%clk 0:00:42]} 54. Rd2 {[%clk 0:00:37]}  Rh3+ {[%clk 0:00:40]} 55. Kf2 {[%clk 0:00:37]}  Be4 {[%clk 0:00:38]} 56. Re2 {[%clk 0:00:23]}  Bf5 {[%clk 0:00:35]} 57. Ra2 {[%clk 0:00:23]}  Rh2+ {[%clk 0:00:30]} 58. Kg3 {[%clk 0:00:18]}  Rxa2 {[%clk 0:00:31]} 0-1


[Site "https://www.chess.com"]

[Event "Titled Tuesday Blitz August 15 Early 2023"]
[White "Batsiashvili, Nino"]
[Black "Cherniaiev, Tykhon"]
[WhiteFideId "13602993"]
[BlackFideId "14182360"]
[WhiteElo "2424"]
[BlackElo "2786"]
[Result "1/2-1/2"]
[Round "1"]
[TimeControl "180+1"]
[Date "2023.08.15"]
[WhiteClock "0:01:16"]
[BlackClock "0:00:36"]
[Board "73"]

1. d4 {[%clk 0:02:45]}  Nf6 {[%clk 0:02:59]} 2. c4 {[%clk 0:02:44]}  e6 {[%clk 0:02:59]} 3. Nf3 {[%clk 0:02:45]}  d5 {[%clk 0:03:00]} 4. Nc3 {[%clk 0:02:46]}  Be7 {[%clk 0:03:01]} 5. Bf4 {[%clk 0:02:46]}  O-O {[%clk 0:03:01]} 6. e3 {[%clk 0:02:45]}  c5 {[%clk 0:03:01]} 7. dxc5 {[%clk 0:02:42]}  Bxc5 {[%clk 0:03:02]} 8. a3 {[%clk 0:02:42]}  a5 {[%clk 0:03:00]} 9. Rc1 {[%clk 0:02:35]}  Nc6 {[%clk 0:02:59]} 10. Bg5 {[%clk 0:02:33]}  Be7 {[%clk 0:02:56]} 11. cxd5 {[%clk 0:02:22]}  exd5 {[%clk 0:02:56]} 12. Be2 {[%clk 0:02:18]}  h6 {[%clk 0:02:55]} 13. Bh4 {[%clk 0:02:16]}  Be6 {[%clk 0:02:55]} 14. O-O {[%clk 0:02:17]}  Rc8 {[%clk 0:02:56]} 15. Nd4 {[%clk 0:02:17]}  Nxd4 {[%clk 0:02:25]} 16. Qxd4 {[%clk 0:02:18]}  Bc5 {[%clk 0:02:26]} 17. Bxf6 {[%clk 0:01:58]}  Bxd4 {[%clk 0:02:25]} 18. Bxd8 {[%clk 0:01:57]}  Bxc3 {[%clk 0:02:26]} 19. Rxc3 {[%clk 0:01:57]}  Rxc3 {[%clk 0:02:25]} 20. bxc3 {[%clk 0:01:57]}  Rxd8 {[%clk 0:02:26]} 21. Rc1 {[%clk 0:01:42]}  Rc8 {[%clk 0:02:26]} 22. Kf1 {[%clk 0:01:43]}  Kf8 {[%clk 0:02:13]} 23. Ke1 {[%clk 0:01:42]}  Ke7 {[%clk 0:02:12]} 24. Kd2 {[%clk 0:01:42]}  Bf5 {[%clk 0:01:33]} 25. g4 {[%clk 0:01:37]}  Bd7 {[%clk 0:01:11]} 26. Rb1 {[%clk 0:01:36]}  Bc6 {[%clk 0:01:12]} 27. h4 {[%clk 0:01:30]}  Kd6 {[%clk 0:01:12]} 28. h5 {[%clk 0:01:29]}  Rc7 {[%clk 0:01:10]} 29. Rg1 {[%clk 0:01:28]}  f6 {[%clk 0:01:10]} 30. f4 {[%clk 0:01:28]}  Rf7 {[%clk 0:00:42]} 31. Rb1 {[%clk 0:01:24]}  Kc5 {[%clk 0:00:38]} 32. Bd3 {[%clk 0:01:19]}  Re7 {[%clk 0:00:37]} 33. Rg1 {[%clk 0:01:19]}  Rf7 {[%clk 0:00:38]} 34. Bg6 {[%clk 0:01:16]}  Rf8 {[%clk 0:00:38]} 35. Bd3 {[%clk 0:01:15]}  Rf7 {[%clk 0:00:38]} 36. Bg6 {[%clk 0:01:15]}  Rf8 {[%clk 0:00:35]} 37. Bd3 {[%clk 0:01:16]}  Rf7 {[%clk 0:00:36]} 1/2-1/2


[Site "https://www.chess.com"]

[Event "Titled Tuesday Blitz August 15 Early 2023"]
[White "Begunov, Konstantin"]
[Black "Schmakel, Sam"]
[WhiteFideId "4118510"]
[BlackFideId "2039311"]
[WhiteElo "2424"]
[BlackElo "2776"]
[Result "1-0"]
[Round "1"]
[TimeControl "180+1"]
[Date "2023.08.15"]
[WhiteClock "0:01:10"]
[BlackClock "0:00:00"]
[Board "75"]

1. d4 {[%clk 0:03:00]}  d5 {[%clk 0:02:48]} 2. c4 {[%clk 0:03:01]}  e6 {[%clk 0:02:47]} 3. Nc3 {[%clk 0:03:01]}  Be7 {[%clk 0:02:41]} 4. Nf3 {[%clk 0:03:00]}  Nf6 {[%clk 0:02:40]} 5. cxd5 {[%clk 0:03:00]}  exd5 {[%clk 0:02:40]} 6. Bg5 {[%clk 0:03:01]}  c6 {[%clk 0:02:39]} 7. Qc2 {[%clk 0:03:01]}  h6 {[%clk 0:02:27]} 8. Bh4 {[%clk 0:03:01]}  O-O {[%clk 0:02:28]} 9. e3 {[%clk 0:03:01]}  Re8 {[%clk 0:02:24]} 10. Bd3 {[%clk 0:03:01]}  Nbd7 {[%clk 0:02:15]} 11. O-O {[%clk 0:03:00]}  Nh5 {[%clk 0:02:15]} 12. Bxe7 {[%clk 0:02:59]}  Qxe7 {[%clk 0:02:16]} 13. Rab1 {[%clk 0:02:59]}  a5 {[%clk 0:02:11]} 14. a3 {[%clk 0:02:59]}  Nhf6 {[%clk 0:02:09]} 15. b4 {[%clk 0:02:58]}  axb4 {[%clk 0:02:09]} 16. axb4 {[%clk 0:02:59]}  b5 {[%clk 0:02:07]} 17. Rfe1 {[%clk 0:02:59]}  Nb6 {[%clk 0:02:05]} 18. e4 {[%clk 0:02:59]}  Be6 {[%clk 0:01:37]} 19. e5 {[%clk 0:02:24]}  Nfd7 {[%clk 0:01:33]} 20. Nd2 {[%clk 0:02:23]}  Nc4 {[%clk 0:01:04]} 21. Ra1 {[%clk 0:02:19]}  Qxb4 {[%clk 0:00:58]} 22. Nb3 {[%clk 0:02:08]}  Ra3 {[%clk 0:00:33]} 23. Rxa3 {[%clk 0:02:04]}  Nxa3 {[%clk 0:00:34]} 24. Qb2 {[%clk 0:02:04]}  Nc4 {[%clk 0:00:30]} 25. Qc2 {[%clk 0:02:05]}  Ra8 {[%clk 0:00:29]} 26. f4 {[%clk 0:02:01]}  Na3 {[%clk 0:00:13]} 27. Qb2 {[%clk 0:01:58]}  Nc4 {[%clk 0:00:09]} 28. Qc2 {[%clk 0:01:58]}  Na3 {[%clk 0:00:09]} 29. Qb2 {[%clk 0:01:58]}  g6 {[%clk 0:00:08]} 30. Ra1 {[%clk 0:01:36]}  Nb6 {[%clk 0:00:02]} 31. Na2 {[%clk 0:01:18]}  Qe7 {[%clk 0:00:02]} 32. Nc5 {[%clk 0:01:18]}  Nac4 {[%clk 0:00:00]} 33. Qb1 {[%clk 0:01:10]} 1-0


[Site "https://www.chess.com"]

[Event "Titled Tuesday Blitz August 15 Early 2023"]
[White "Gan-Od, Sereenen"]
[Black "Gheorghiu, Calin"]
[WhiteFideId "4901304"]
[BlackFideId "1200305"]
[WhiteElo "2773"]
[BlackElo "2422"]
[Result "1-0"]
[Round "1"]
[TimeControl "180+1"]
[Date "2023.08.15"]
[WhiteClock "0:00:31"]
[BlackClock "0:00:00"]
[Board "76"]

1. c4 {[%clk 0:02:58]}  e6 {[%clk 0:02:59]} 2. Nf3 {[%clk 0:02:56]}  Nf6 {[%clk 0:02:55]} 3. g3 {[%clk 0:02:57]}  d5 {[%clk 0:02:54]} 4. Bg2 {[%clk 0:02:58]}  dxc4 {[%clk 0:02:54]} 5. O-O {[%clk 0:02:59]}  Be7 {[%clk 0:02:53]} 6. Na3 {[%clk 0:02:58]}  O-O {[%clk 0:02:49]} 7. Nxc4 {[%clk 0:02:57]}  Nbd7 {[%clk 0:02:48]} 8. b3 {[%clk 0:02:52]}  c6 {[%clk 0:02:46]} 9. Bb2 {[%clk 0:02:43]}  b5 {[%clk 0:02:42]} 10. Nce5 {[%clk 0:02:37]}  Bb7 {[%clk 0:02:38]} 11. d4 {[%clk 0:02:26]}  Rc8 {[%clk 0:02:27]} 12. Rc1 {[%clk 0:02:25]}  c5 {[%clk 0:02:14]} 13. dxc5 {[%clk 0:02:19]}  Nxc5 {[%clk 0:02:11]} 14. Nd4 {[%clk 0:02:09]}  Bxg2 {[%clk 0:02:09]} 15. Kxg2 {[%clk 0:02:10]}  Qb6 {[%clk 0:01:50]} 16. e3 {[%clk 0:02:02]}  Qb7+ {[%clk 0:01:32]} 17. Qf3 {[%clk 0:01:59]}  Qxf3+ {[%clk 0:01:31]} 18. Ndxf3 {[%clk 0:01:59]}  Nce4 {[%clk 0:01:06]} 19. Nd4 {[%clk 0:01:55]}  a6 {[%clk 0:00:56]} 20. Nec6 {[%clk 0:01:49]}  Bc5 {[%clk 0:00:46]} 21. f3 {[%clk 0:01:44]}  Nd5 {[%clk 0:00:22]} 22. fxe4 {[%clk 0:01:30]}  Nxe3+ {[%clk 0:00:22]} 23. Kg1 {[%clk 0:01:21]}  Bxd4 {[%clk 0:00:10]} 24. Bxd4 {[%clk 0:01:14]}  Nxf1 {[%clk 0:00:11]} 25. Kxf1 {[%clk 0:01:14]}  Kh8 {[%clk 0:00:04]} 26. Ke2 {[%clk 0:01:12]}  f6 {[%clk 0:00:04]} 27. Rc5 {[%clk 0:00:48]}  Rf7 {[%clk 0:00:04]} 28. Na5 {[%clk 0:00:45]}  Rxc5 {[%clk 0:00:03]} 29. Bxc5 {[%clk 0:00:46]}  Rc7 {[%clk 0:00:04]} 30. b4 {[%clk 0:00:46]}  Rd7 {[%clk 0:00:04]} 31. Nb3 {[%clk 0:00:46]}  Kg8 {[%clk 0:00:04]} 32. Be3 {[%clk 0:00:46]}  Kf7 {[%clk 0:00:04]} 33. Nc5 {[%clk 0:00:46]}  Rd6 {[%clk 0:00:04]} 34. Nd3 {[%clk 0:00:32]}  Rc6 {[%clk 0:00:02]} 35. Bc5 {[%clk 0:00:31]}  g6 {[%clk 0:00:00]} 36. e5 {[%clk 0:00:31]} 1-0


[Site "https://www.chess.com"]

[Event "Titled Tuesday Blitz August 15 Early 2023"]
[White "Shohat, Yotam"]
[Black "Yanchenko, Roman"]
[WhiteFideId "2813955"]
[BlackFideId "4137329"]
[WhiteElo "2421"]
[BlackElo "2773"]
[Result "1/2-1/2"]
[Round "1"]
[TimeControl "180+1"]
[Date "2023.08.15"]
[WhiteClock "0:00:04"]
[BlackClock "0:00:06"]
[Board "77"]

1. e4 {[%clk 0:02:56]}  e6 {[%clk 0:03:00]} 2. d4 {[%clk 0:02:56]}  d5 {[%clk 0:03:00]} 3. Nc3 {[%clk 0:02:57]}  Bb4 {[%clk 0:03:00]} 4. e5 {[%clk 0:02:57]}  Ne7 {[%clk 0:03:00]} 5. a3 {[%clk 0:02:57]}  Bxc3+ {[%clk 0:03:01]} 6. bxc3 {[%clk 0:02:58]}  b6 {[%clk 0:03:02]} 7. Qg4 {[%clk 0:02:57]}  O-O {[%clk 0:03:02]} 8. h4 {[%clk 0:02:37]}  Kh8 {[%clk 0:03:01]} 9. h5 {[%clk 0:02:36]}  h6 {[%clk 0:03:02]} 10. Rh3 {[%clk 0:02:25]}  Ba6 {[%clk 0:03:02]} 11. Bxa6 {[%clk 0:01:58]}  Nxa6 {[%clk 0:03:03]} 12. Ne2 {[%clk 0:01:50]}  c5 {[%clk 0:03:02]} 13. Qf4 {[%clk 0:00:59]}  Rc8 {[%clk 0:03:01]} 14. Rg3 {[%clk 0:00:53]}  Nf5 {[%clk 0:02:58]} 15. Rf3 {[%clk 0:00:53]}  Qh4 {[%clk 0:02:45]} 16. g4 {[%clk 0:00:50]}  Ne7 {[%clk 0:02:33]} 17. g5 {[%clk 0:00:34]}  Qxf4 {[%clk 0:02:32]} 18. Bxf4 {[%clk 0:00:35]}  Nf5 {[%clk 0:02:23]} 19. Kd2 {[%clk 0:00:31]}  Kh7 {[%clk 0:02:11]} 20. Rg1 {[%clk 0:00:31]}  Nb8 {[%clk 0:02:09]} 21. Ng3 {[%clk 0:00:22]}  Ne7 {[%clk 0:02:09]} 22. gxh6 {[%clk 0:00:14]}  gxh6 {[%clk 0:02:09]} 23. Be3 {[%clk 0:00:14]}  Nbc6 {[%clk 0:02:06]} 24. Rf6 {[%clk 0:00:14]}  Ng8 {[%clk 0:02:03]} 25. Rf4 {[%clk 0:00:09]}  cxd4 {[%clk 0:01:49]} 26. cxd4 {[%clk 0:00:10]}  f5 {[%clk 0:01:49]} 27. Ne2 {[%clk 0:00:04]}  Nge7 {[%clk 0:01:46]} 28. Rf3 {[%clk 0:00:04]}  Rg8 {[%clk 0:01:45]} 29. Rfg3 {[%clk 0:00:04]}  Rxg3 {[%clk 0:01:45]} 30. Rxg3 {[%clk 0:00:05]}  Na5 {[%clk 0:01:44]} 31. Nf4 {[%clk 0:00:05]}  Nc4+ {[%clk 0:01:40]} 32. Kd3 {[%clk 0:00:06]}  Nb2+ {[%clk 0:00:59]} 33. Kd2 {[%clk 0:00:05]}  Nc4+ {[%clk 0:00:59]} 34. Kd3 {[%clk 0:00:05]}  Nxa3 {[%clk 0:00:38]} 35. Nxe6 {[%clk 0:00:04]}  Rg8 {[%clk 0:00:39]} 36. Rxg8 {[%clk 0:00:02]}  Nxg8 {[%clk 0:00:39]} 37. Nc7 {[%clk 0:00:01]}  Ne7 {[%clk 0:00:39]} 38. Bc1 {[%clk 0:00:01]}  Nc4 {[%clk 0:00:36]} 39. Nxd5 {[%clk 0:00:02]}  Nxe5+ {[%clk 0:00:36]} 40. dxe5 {[%clk 0:00:02]}  Nxd5 {[%clk 0:00:37]} 41. Kd4 {[%clk 0:00:03]}  Nc7 {[%clk 0:00:37]} 42. c4 {[%clk 0:00:03]}  Kg7 {[%clk 0:00:37]} 43. Ba3 {[%clk 0:00:03]}  Kf7 {[%clk 0:00:36]} 44. Bd6 {[%clk 0:00:03]}  Ne6+ {[%clk 0:00:36]} 45. Kd5 {[%clk 0:00:04]}  Nf4+ {[%clk 0:00:36]} 46. Kc6 {[%clk 0:00:05]}  Ke6 {[%clk 0:00:36]} 47. Bf8 {[%clk 0:00:04]}  Nd3 {[%clk 0:00:27]} 48. f4 {[%clk 0:00:03]}  Nxf4 {[%clk 0:00:27]} 49. Bxh6 {[%clk 0:00:04]}  Nxh5 {[%clk 0:00:28]} 50. Kb7 {[%clk 0:00:04]}  a5 {[%clk 0:00:25]} 51. Kxb6 {[%clk 0:00:04]}  a4 {[%clk 0:00:25]} 52. Bc1 {[%clk 0:00:04]}  f4 {[%clk 0:00:23]} 53. c5 {[%clk 0:00:04]}  f3 {[%clk 0:00:12]} 54. c6 {[%clk 0:00:04]}  f2 {[%clk 0:00:04]} 55. c7 {[%clk 0:00:05]}  f1=Q {[%clk 0:00:05]} 56. c8=Q+ {[%clk 0:00:05]}  Kxe5 {[%clk 0:00:05]} 57. Qc5+ {[%clk 0:00:05]}  Ke4 {[%clk 0:00:05]} 58. Qc6+ {[%clk 0:00:05]}  Ke5 {[%clk 0:00:03]} 59. Bb2+ {[%clk 0:00:04]}  Kf5 {[%clk 0:00:03]} 60. Qd5+ {[%clk 0:00:04]}  Kg4 {[%clk 0:00:03]} 61. Qe6+ {[%clk 0:00:02]}  Kg3 {[%clk 0:00:01]} 62. Qg6+ {[%clk 0:00:02]}  Kf2 {[%clk 0:00:02]} 63. Qf5+ {[%clk 0:00:02]}  Ke1 {[%clk 0:00:02]} 64. Bc3+ {[%clk 0:00:01]}  Ke2 {[%clk 0:00:02]} 65. Qe4+ {[%clk 0:00:02]}  Kf2 {[%clk 0:00:03]} 66. Bd4+ {[%clk 0:00:02]}  Kg3 {[%clk 0:00:03]} 67. Qg6+ {[%clk 0:00:01]}  Kh4 {[%clk 0:00:04]} 68. Qe6 {[%clk 0:00:01]}  Qb1+ {[%clk 0:00:03]} 69. Kc6 {[%clk 0:00:02]}  Qc2+ {[%clk 0:00:03]} 70. Bc5 {[%clk 0:00:02]}  Qg2+ {[%clk 0:00:04]} 71. Kc7 {[%clk 0:00:03]}  Qg4 {[%clk 0:00:04]} 72. Qe1+ {[%clk 0:00:02]}  Qg3+ {[%clk 0:00:04]} 73. Qxg3+ {[%clk 0:00:02]}  Kxg3 {[%clk 0:00:05]} 74. Kb6 {[%clk 0:00:03]}  Kf3 {[%clk 0:00:05]} 75. Kb5 {[%clk 0:00:03]}  Nf4 {[%clk 0:00:06]} 76. Kxa4 {[%clk 0:00:04]} 1/2-1/2


[Site "https://www.chess.com"]

[Event "Titled Tuesday Blitz August 15 Early 2023"]
[White "Flores, Diego"]
[Black "Todorovic, Bojan"]
[WhiteFideId "108049"]
[BlackFideId "917087"]
[WhiteElo "2772"]
[BlackElo "2420"]
[Result "1-0"]
[Round "1"]
[TimeControl "180+1"]
[Date "2023.08.15"]
[WhiteClock "0:01:05"]
[BlackClock "0:00:07"]
[Board "78"]

1. d4 {[%clk 0:02:59]}  g6 {[%clk 0:02:58]} 2. e4 {[%clk 0:02:58]}  Bg7 {[%clk 0:02:57]} 3. Nc3 {[%clk 0:02:58]}  d6 {[%clk 0:02:56]} 4. Bc4 {[%clk 0:02:54]}  e6 {[%clk 0:02:53]} 5. Bb3 {[%clk 0:02:52]}  Ne7 {[%clk 0:02:48]} 6. Be3 {[%clk 0:02:47]}  b6 {[%clk 0:02:38]} 7. Qd2 {[%clk 0:02:47]}  Bb7 {[%clk 0:02:37]} 8. Bh6 {[%clk 0:02:42]}  O-O {[%clk 0:02:03]} 9. h4 {[%clk 0:02:38]}  Nbc6 {[%clk 0:01:56]} 10. h5 {[%clk 0:02:29]}  Bxd4 {[%clk 0:01:50]} 11. Nf3 {[%clk 0:02:10]}  Bf6 {[%clk 0:01:43]} 12. hxg6 {[%clk 0:02:03]}  hxg6 {[%clk 0:01:39]} 13. Qf4 {[%clk 0:01:55]}  Bh8 {[%clk 0:01:34]} 14. Qh4 {[%clk 0:01:21]}  Bxc3+ {[%clk 0:00:40]} 15. bxc3 {[%clk 0:01:18]}  Ne5 {[%clk 0:00:07]} 16. Bg5 {[%clk 0:01:05]} 1-0


[Site "https://www.chess.com"]